bitfinex-derivatives/quotes_BNBF0:USTF0_20250507
["timestamp","ask_amount","ask_price","bid_price","bid_amount"]
[1746631300555,0.99109139,602.92,601.29,3.5106182]
[1746631300954,0.99109139,602.91,601.29,3.5106182]
[1746631301255,0.99109139,602.9,601.29,3.5106182]
[1746631301555,0.99109139,602.89,601.29,3.5106182]
[1746631301955,0.99109139,602.88,601.29,3.5106182]
[1746631302551,0.28892616,602.96,601.29,3.5106182]
[1746631302552,0.99109139,602.87,601.29,3.5106182]
[1746631303252,0.99109139,602.86,601.29,3.5106182]
[1746631304256,0.99109139,602.85,601.29,3.5106182]
[1746631304557,0.99109139,602.84,601.29,3.5106182]
[1746631304857,0.99109139,602.83,601.29,3.5106182]
[1746631305354,0.99109139,602.82,601.29,3.5106182]
[1746631305558,0.99109139,602.81,601.29,3.5106182]
[1746631306058,0.99109139,602.8,601.29,3.5106182]
[1746631306258,0.99109139,602.79,601.29,3.5106182]
[1746631306559,0.99109139,602.78,601.29,3.5106182]
[1746631307158,0.99109139,602.77,601.29,3.5106182]
[1746631307854,0.99109139,602.76,601.29,3.5106182]
[1746631308359,0.99109139,602.75,601.29,3.5106182]
[1746631309158,0.99109139,602.74,601.29,3.5106182]
[1746631309558,0.99109139,602.73,601.29,3.5106182]
[1746631310259,0.99109139,602.72,601.29,3.5106182]
[1746631310555,0.98697849,602.71,601.29,3.5106182]
[1746631311359,0.98697849,602.7,601.29,3.5106182]
[1746631311660,0.98697849,602.69,601.29,3.5106182]
[1746631311960,0.98697849,602.68,601.29,3.5106182]
[1746631313160,0.98697849,602.67,601.29,3.5106182]
[1746631313459,0.98697849,602.66,601.29,3.5106182]
[1746631314255,0.98697849,602.65,601.29,3.5106182]
[1746631316463,0.98697849,602.64,601.29,3.5106182]
[1746631317361,0.98697849,602.63,601.29,3.5106182]
[1746631317962,0.98697849,602.62,601.29,3.5106182]
[1746631318456,0.98697849,602.61,601.29,3.5106182]
[1746631318661,0.98697849,602.6,601.29,3.5106182]
[1746631319163,0.98697849,602.59,601.29,3.5106182]
[1746631319558,0.98697849,602.58,601.29,3.5106182]
[1746631320164,0.98697849,602.57,601.29,3.5106182]
[1746631320664,0.98697849,602.56,601.29,3.5106182]
[1746631321066,0.98697849,602.55,601.29,3.5106182]
[1746631321266,0.98697849,602.54,601.29,3.5106182]
[1746631321467,0.98697849,602.53,601.29,3.5106182]
[1746631321667,0.98697849,602.52,601.29,3.5106182]
[1746631321866,0.98697849,602.51,601.29,3.5106182]
[1746631322667,0.98697849,602.5,601.29,3.5106182]
[1746631323067,0.98697849,602.49,601.29,3.5106182]
[1746631323565,0.98697849,602.48,601.29,3.5106182]
[1746631324468,0.98697849,602.99,601.29,3.5106182]
[1746631324973,0.98697849,602.98,601.29,3.5106182]
[1746631325574,0.98697849,602.97,601.29,3.5106182]
[1746631326176,0.98697849,602.96,601.29,3.5106182]
[1746631326573,0.98697849,602.95,601.29,3.5106182]
[1746631326975,0.98697849,602.94,601.29,3.5106182]
[1746631327369,0.98697849,602.93,601.29,3.5106182]
[1746631327776,0.98697849,602.92,601.29,3.5106182]
[1746631328476,0.98697849,602.91,601.29,3.5106182]
[1746631328778,0.98697849,602.9,601.29,3.5106182]
[1746631329276,0.98697849,602.89,601.29,3.5106182]
[1746631329877,0.98697849,602.88,601.29,3.5106182]
[1746631330282,0.98697849,602.87,601.29,3.5106182]
[1746631330675,0.98697849,602.86,601.29,3.5106182]
[1746631330882,0.98697849,602.85,601.29,3.5106182]
[1746631331382,0.98697849,602.84,601.29,3.5106182]
[1746631331681,0.98697849,602.83,601.29,3.5106182]
[1746631332276,0.98697849,602.82,601.29,3.5106182]
[1746631332483,0.98697849,602.81,601.29,3.5106182]
[1746631332883,0.98697849,602.8,601.29,3.5106182]
[1746631333178,0.98697849,602.79,601.29,3.5106182]
[1746631334083,0.98697849,602.78,601.29,3.5106182]
[1746631334884,0.28893455,602.94,601.29,3.5106182]
[1746631334885,0.98697849,602.77,601.29,3.5106182]
[1746631335486,0.98697849,602.76,601.29,3.5106182]
[1746631335985,0.98697849,602.75,601.29,3.5106182]
[1746631336586,0.98697849,602.74,601.29,3.5106182]
[1746631337187,0.98697849,602.73,601.29,3.5106182]
[1746631337487,0.98697849,602.72,601.29,3.5106182]
[1746631337689,0.98697849,602.71,601.29,3.5106182]
[1746631338189,0.98697849,602.7,601.29,3.5106182]
[1746631338689,0.98697849,602.69,601.29,3.5106182]
[1746631339289,0.98697849,602.68,601.29,3.5106182]
[1746631339482,0.98697849,602.67,601.29,3.5106182]
[1746631339984,0.98697849,602.66,601.29,3.5106182]
[1746631340485,0.98697849,602.65,601.29,3.5106182]
[1746631340684,0.98697849,602.64,601.29,3.5106182]
[1746631341185,1.24364861,602.63,601.29,3.5106182]
[1746631341390,2.2306271,602.62,601.29,3.5106182]
[1746631341590,1.24364861,602.61,601.29,3.5106182]
[1746631341788,1.24364861,602.6,601.29,3.5106182]
[1746631341988,2.2306271,602.59,601.29,3.5106182]
[1746631342184,2.2306271,602.58,601.29,3.5106182]
[1746631342389,1.24364861,602.57,601.29,3.5106182]
[1746631342585,1.24364861,602.56,601.29,3.5106182]
[1746631342790,2.2306271,602.55,601.29,3.5106182]
[1746631342989,2.2306271,602.54,601.29,3.5106182]
[1746631343286,1.24364861,602.53,601.29,3.5106182]
[1746631343490,2.2306271,602.52,601.29,3.5106182]
[1746631343684,1.24364861,602.51,601.29,3.5106182]
[1746631343890,2.23181186,602.5,601.29,2.7066182]
[1746631344090,1.24483337,602.49,601.29,2.7066182]
[1746631344286,1.24483337,602.48,601.29,2.7066182]
[1746631344490,2.23181186,602.47,601.29,2.7066182]
[1746631344791,2.23181186,602.46,601.29,2.7066182]
[1746631344997,1.24483337,602.45,601.29,2.7066182]
[1746631345292,2.23181186,602.44,601.29,2.7066182]
[1746631345491,1.24483337,602.43,601.29,2.7066182]
[1746631345686,2.2330894,602.42,601.29,2.7066182]
[1746631345987,0.98697849,602.42,601.29,2.7066182]
[1746631346689,0.98697849,602.41,601.29,2.7066182]
[1746631346991,0.98697849,602.4,601.29,2.7066182]
[1746631347692,0.98697849,602.39,601.29,3.3486182]
[1746631348095,0.98697849,602.38,601.29,3.3486182]
[1746631348293,0.98697849,602.37,601.29,3.3486182]
[1746631348692,0.98697849,602.36,601.29,3.3486182]
[1746631349189,0.98697849,602.35,601.29,3.3486182]
[1746631349389,1.2467961,602.34,601.29,3.3486182]
[1746631349589,2.23400771,602.33,601.29,3.3486182]
[1746631349794,0.98697849,602.32,601.29,3.3486182]
[1746631349990,0.98697849,602.31,601.29,3.3486182]
[1746631350194,0.98697849,602.3,601.29,3.3486182]
[1746631350694,0.98697849,602.29,601.29,3.3486182]
[1746631351195,0.98697849,602.28,601.29,3.3486182]
[1746631351496,0.98697849,602.27,601.29,3.3486182]
[1746631351896,0.98697849,602.26,601.29,3.3486182]
[1746631352695,0.28900294,602.89,601.29,3.3486182]
[1746631352890,1.24823568,602.88,601.29,3.3486182]
[1746631353095,1.55325105,602.87,601.29,3.3486182]
[1746631353295,1.24823568,602.86,601.29,3.3486182]
[1746631353494,1.24823568,602.85,601.29,3.3486182]
[1746631353696,1.24823568,602.84,601.29,3.3486182]
[1746631353897,1.24823568,602.83,601.29,3.3486182]
[1746631354097,1.24823568,602.82,601.29,3.3486182]
[1746631354292,0.28893695,602.89,601.29,3.3486182]
[1746631354293,2.24214896,602.81,601.29,3.3486182]
[1746631354497,1.24823568,602.8,601.29,3.3486182]
[1746631354698,2.24214896,602.79,601.29,3.3486182]
[1746631354898,1.24823568,602.78,601.29,3.3486182]
[1746631355099,2.24214896,602.77,601.29,3.3486182]
[1746631355299,1.24823568,602.76,601.29,3.3486182]
[1746631355496,2.24214896,602.75,601.29,3.3486182]
[1746631355801,2.24214896,602.74,601.29,3.3486182]
[1746631356002,1.24823568,602.73,601.29,3.3486182]
[1746631356205,2.24214896,602.72,601.29,3.3486182]
[1746631356401,1.24823568,602.71,601.29,3.3486182]
[1746631356596,2.24214896,602.7,601.29,3.3486182]
[1746631356802,1.24823568,602.69,601.29,3.3486182]
[1746631357002,1.24823568,602.68,601.29,3.3486182]
[1746631357202,1.24823568,602.67,601.29,3.3486182]
[1746631357499,0.99391328,602.68,601.29,3.3486182]
[1746631357500,1.24823568,602.66,601.29,3.3486182]
[1746631357702,2.24214896,602.65,601.29,3.3486182]
[1746631357901,1.24823568,602.64,601.29,3.3486182]
[1746631358101,1.24823568,602.63,601.29,3.3486182]
[1746631358303,1.24823568,602.62,601.29,3.3486182]
[1746631358603,1.24823568,602.61,601.29,3.3486182]
[1746631358801,2.24214896,602.6,601.29,3.3486182]
[1746631359005,1.24823568,602.59,601.29,3.3486182]
[1746631359202,2.24328312,602.58,601.29,3.3486182]
[1746631359405,1.24936984,602.57,601.29,3.3486182]
[1746631359708,1.24936984,602.56,601.29,3.3486182]
[1746631359903,1.24936984,602.55,601.29,3.3486182]
[1746631360103,1.24936984,602.54,601.29,3.3486182]
[1746631360404,1.24936984,602.53,601.29,3.3486182]
[1746631360608,2.24328312,602.52,601.29,3.3486182]
[1746631360810,1.24936984,602.51,601.29,3.3486182]
[1746631361108,2.24328312,602.5,601.29,3.3486182]
[1746631361312,1.24936984,602.49,601.29,3.3486182]
[1746631361510,2.24328312,602.48,601.29,3.3486182]
[1746631361804,2.24284947,602.47,601.29,3.3486182]
[1746631362007,2.24284947,602.46,601.29,3.3486182]
[1746631362208,1.24893619,602.45,601.29,3.3486182]
[1746631362406,1.24893619,602.44,601.29,3.3486182]
[1746631362601,0.99391328,602.46,601.29,3.3486182]
[1746631362602,2.24284947,602.43,601.29,3.3486182]
[1746631362803,1.24893619,602.42,601.29,3.3486182]
[1746631363004,1.24893619,602.41,601.29,3.3486182]
[1746631363309,2.24284947,602.4,601.29,3.3486182]
[1746631363508,1.24893619,602.39,601.29,3.3486182]
[1746631363704,2.24284947,602.38,601.29,3.3486182]
[1746631363908,1.24893619,602.37,601.29,3.3486182]
[1746631364109,2.24284947,602.36,601.29,3.3486182]
[1746631364303,1.24893619,602.35,601.29,3.3486182]
[1746631364603,2.24284947,602.34,601.29,3.3486182]
[1746631364804,0.99391328,602.34,601.29,3.3486182]
[1746631365108,0.99391328,602.33,601.29,3.3486182]
[1746631365605,0.99391328,602.32,601.29,3.3486182]
[1746631366008,0.99391328,602.31,601.29,3.3486182]
[1746631366409,0.99391328,602.3,601.29,3.3486182]
[1746631366711,0.99391328,602.29,601.29,3.3486182]
[1746631367310,0.99391328,602.28,601.29,3.3486182]
[1746631367708,0.99391328,602.27,601.29,3.3486182]
[1746631367912,0.28899454,602.92,601.29,3.3486182]
[1746631368208,2.24394926,602.91,601.29,3.3486182]
[1746631368412,1.24944566,602.9,601.29,3.3486182]
[1746631368612,1.24944566,602.89,601.29,3.3486182]
[1746631368812,1.24944566,602.88,601.29,3.3486182]
[1746631369017,1.24944566,602.87,601.29,3.3486182]
[1746631369209,1.24944566,602.86,601.29,3.3486182]
[1746631369414,1.24944566,602.85,601.29,3.3486182]
[1746631369613,1.24944566,602.84,601.29,3.3486182]
[1746631369915,2.24394926,602.83,601.29,3.3486182]
[1746631370108,1.24944566,602.82,601.29,3.3486182]
[1746631370308,1.24944566,602.81,601.29,3.3486182]
[1746631370610,0.28882544,602.92,601.29,3.3486182]
[1746631370611,2.24394926,602.8,601.29,3.3486182]
[1746631370813,1.24944566,602.79,601.29,3.3486182]
[1746631371012,1.24944566,602.78,601.29,3.3486182]
[1746631371209,1.24944566,602.77,601.29,3.3486182]
[1746631371413,1.24944566,602.76,601.29,3.3486182]
[1746631371612,1.24944566,602.75,601.29,3.3486182]
[1746631371913,1.24944566,602.74,601.29,3.3486182]
[1746631372111,1.24944566,602.73,601.29,3.3486182]
[1746631372311,1.24944566,602.72,601.29,3.3486182]
[1746631372512,2.24411779,602.71,601.29,3.3486182]
[1746631372715,1.24961419,602.7,601.29,3.3486182]
[1746631372915,1.24961419,602.69,601.29,3.3486182]
[1746631373109,2.24411779,602.68,601.29,3.3486182]
[1746631373315,1.24961419,602.67,601.29,3.3486182]
[1746631373511,1.24961419,602.66,601.29,3.3486182]
[1746631373716,2.24411779,602.65,601.29,3.3486182]
[1746631374014,1.24961419,602.64,601.29,3.3486182]
[1746631374213,1.24961419,602.63,601.29,3.3486182]
[1746631374412,2.24367776,602.62,601.29,3.3486182]
[1746631374614,1.24917416,602.61,601.29,3.3486182]
[1746631374814,0.9945036,602.62,601.29,3.3486182]
[1746631374815,1.24917416,602.6,601.29,3.3486182]
[1746631375015,2.24367776,602.59,601.29,3.3486182]
[1746631375218,2.24367776,602.58,601.29,3.3486182]
[1746631375418,1.24917416,602.57,601.29,3.3486182]
[1746631375715,2.24367776,602.56,601.29,3.3486182]
[1746631375918,1.24917416,602.55,601.29,3.3486182]
[1746631376118,1.24917416,602.54,601.29,3.3486182]
[1746631376319,1.24917416,602.53,601.29,3.3486182]
[1746631376519,1.24917416,602.52,601.29,3.3486182]
[1746631376716,0.9945036,602.53,601.29,3.3486182]
[1746631376920,1.24936913,602.52,601.29,3.3486182]
[1746631377117,1.24936913,602.51,601.29,3.3486182]
[1746631377416,2.24387273,602.5,601.29,3.3486182]
[1746631377721,2.24387273,602.49,601.29,3.3486182]
[1746631378020,1.24936913,602.48,601.29,3.3486182]
[1746631378221,1.24936913,602.47,601.29,3.3486182]
[1746631378421,2.24387273,602.46,601.29,3.3486182]
[1746631378619,1.24936913,602.45,601.29,3.3486182]
[1746631378820,1.24936913,602.44,601.29,3.3486182]
[1746631379017,2.24387273,602.43,601.29,3.3486182]
[1746631379219,2.24387273,602.42,601.29,3.3486182]
[1746631379517,1.24936913,602.41,601.29,3.3486182]
[1746631379717,0.28897294,602.92,601.29,3.3486182]
[1746631379718,2.24387273,602.4,601.29,3.3486182]
[1746631379921,1.24936913,602.39,601.29,3.3486182]
[1746631380119,2.24387273,602.38,601.29,3.3486182]
[1746631380319,2.24387273,602.37,601.29,3.3486182]
[1746631380517,1.24936913,602.36,601.29,3.3486182]
[1746631380717,1.24936913,602.35,601.29,3.3486182]
[1746631380922,1.24936913,602.34,601.29,3.3486182]
[1746631381225,0.9945036,602.33,601.29,3.3486182]
[1746631381821,0.9945036,602.32,601.29,3.3486182]
[1746631382423,0.9945036,602.31,601.29,3.3486182]
[1746631383025,0.9945036,602.3,601.29,3.3486182]
[1746631383425,0.9945036,602.29,601.29,3.3486182]
[1746631383724,0.9945036,602.28,601.29,3.3486182]
[1746631384527,0.9945036,602.27,601.29,3.3486182]
[1746631385131,0.28899334,602.94,601.29,3.3486182]
[1746631385323,1.24915148,602.93,601.29,3.3486182]
[1746631385523,1.24915148,602.92,601.29,3.3486182]
[1746631385723,2.24373538,602.91,601.29,3.3486182]
[1746631385928,1.24915148,602.9,601.29,3.3486182]
[1746631386126,1.24915148,602.89,601.29,3.3486182]
[1746631386324,2.24373538,602.88,601.29,3.3486182]
[1746631386526,1.24915148,602.87,601.29,3.3486182]
[1746631386725,1.24915148,602.86,601.29,3.3486182]
[1746631386925,2.24373538,602.85,601.29,3.3486182]
[1746631387124,1.24915148,602.84,601.29,3.3486182]
[1746631387325,1.24915148,602.83,601.29,3.3486182]
[1746631387529,2.24373538,602.82,601.29,3.3486182]
[1746631387728,1.24915148,602.81,601.29,3.3486182]
[1746631387926,1.24915148,602.8,601.29,3.3486182]
[1746631388225,1.24915148,602.79,601.29,3.3486182]
[1746631388425,1.24915148,602.78,601.29,3.3486182]
[1746631388728,2.24373538,602.77,601.29,3.3486182]
[1746631388926,1.24915148,602.76,601.29,3.3486182]
[1746631389229,2.24373538,602.75,601.29,3.3486182]
[1746631389427,0.9945839,602.75,601.29,3.3486182]
[1746631389629,0.9945839,602.74,601.29,3.3486182]
[1746631390331,0.9945839,602.73,601.29,3.3486182]
[1746631390533,2.24253946,602.72,601.29,3.3486182]
[1746631390730,1.24795556,602.71,601.29,3.3486182]
[1746631390924,1.24795556,602.7,601.29,3.3486182]
[1746631391230,2.24253946,602.69,601.29,3.3486182]
[1746631391435,1.24795556,602.68,601.29,3.3486182]
[1746631391728,0.9945839,602.69,601.29,3.3486182]
[1746631391933,0.9945839,602.67,601.29,3.3486182]
[1746631392332,0.9945839,602.66,601.29,3.3486182]
[1746631393033,0.9945839,602.65,601.29,3.3486182]
[1746631393437,0.9945839,602.64,601.29,3.3486182]
[1746631394139,0.9945839,602.63,601.29,3.3486182]
[1746631394340,0.9945839,602.62,601.29,3.3486182]
[1746631394941,0.9945839,602.61,601.29,3.3486182]
[1746631395738,0.9945839,602.6,601.29,3.3486182]
[1746631396441,0.9945839,602.59,601.29,3.3486182]
[1746631396640,0.9945839,602.58,601.29,3.3486182]
[1746631396939,0.9945839,602.57,601.29,3.3486182]
[1746631397439,0.9945839,602.56,601.29,3.3486182]
[1746631397938,0.9945839,602.55,601.29,3.3486182]
[1746631398536,0.9945839,602.54,601.29,3.3486182]
[1746631399250,0.9945839,602.53,601.29,3.3486182]
[1746631399740,0.9945839,602.52,601.29,3.3486182]
[1746631400341,0.9945839,602.51,601.29,3.3486182]
[1746631400940,0.9945839,602.5,601.29,3.3486182]
[1746631401842,0.9945839,602.49,601.29,3.3486182]
[1746631402336,0.9945839,602.48,601.29,3.3486182]
[1746631402842,0.9945839,602.47,601.29,3.3486182]
[1746631403443,0.9945839,602.46,601.29,3.3486182]
[1746631404343,0.9945839,602.45,601.29,3.3486182]
[1746631404535,0.9945839,602.44,601.29,3.3486182]
[1746631404739,0.9945839,602.43,601.29,3.3486182]
[1746631404937,0.9945839,602.42,601.29,3.3486182]
[1746631405240,0.9945839,602.41,601.29,3.3486182]
[1746631405843,0.9945839,602.4,601.29,3.3486182]
[1746631406141,0.28896454,602.98,601.29,3.3486182]
[1746631406337,0.99457095,602.39,601.29,3.3486182]
[1746631406542,0.99457095,602.38,601.29,3.3486182]
[1746631406736,0.99457095,602.37,601.29,3.3486182]
[1746631407138,0.99457095,602.36,601.29,3.3486182]
[1746631407642,0.99457095,602.35,601.29,3.3486182]
[1746631408341,0.99457095,602.34,601.29,3.3486182]
[1746631408639,0.99457095,602.33,601.29,3.3486182]
[1746631408938,0.99457095,602.32,601.29,3.3486182]
[1746631409343,0.99457095,602.31,601.29,3.3486182]
[1746631409743,0.99457095,602.3,601.29,3.3486182]
[1746631410744,0.99457095,602.29,601.29,3.3486182]
[1746631411247,0.28897894,603.0,601.29,3.3486182]
[1746631411946,0.99420698,602.99,601.29,3.3486182]
[1746631412445,0.99420698,602.98,601.29,3.3486182]
[1746631412840,0.99420698,602.97,601.29,3.3486182]
[1746631413643,0.99420698,602.96,601.29,3.3486182]
[1746631414047,0.99420698,602.95,601.29,3.3486182]
[1746631414644,0.99420698,602.94,601.29,3.3486182]
[1746631414947,0.99420698,602.93,601.29,3.3486182]
[1746631415649,0.99420698,602.92,601.29,3.3486182]
[1746631416149,0.99420698,602.91,601.29,3.3486182]
[1746631416449,0.99420698,602.9,601.29,3.3486182]
[1746631416849,0.99420698,602.89,601.29,3.3486182]
[1746631417352,0.99420698,602.88,601.29,3.3486182]
[1746631417648,0.99420698,602.87,601.29,3.3486182]
[1746631417848,0.99420698,602.86,601.29,3.3486182]
[1746631418548,0.99420698,602.85,601.29,3.3486182]
[1746631418947,0.99420698,602.84,601.29,3.3486182]
[1746631419151,0.99420698,602.83,601.29,3.3486182]
[1746631419750,0.99420698,602.82,601.29,3.3486182]
[1746631420249,0.99420698,602.81,601.29,3.3486182]
[1746631420744,0.99420698,602.8,601.29,3.3486182]
[1746631421247,0.99420698,602.79,601.29,3.3486182]
[1746631421548,0.99420698,602.78,601.29,3.3486182]
[1746631422149,0.99420698,602.77,601.29,3.3486182]
[1746631422651,0.99420698,602.76,601.29,3.3486182]
[1746631423348,0.99420698,602.75,601.29,3.3486182]
[1746631423848,0.99420698,602.74,601.29,3.3486182]
[1746631424148,0.99420698,602.73,601.29,3.3486182]
[1746631424853,0.99420698,602.72,601.29,3.3486182]
[1746631425346,0.99420698,602.71,601.29,3.3486182]
[1746631425851,0.99420698,602.7,601.29,3.3486182]
[1746631426249,0.99420698,602.69,601.29,3.3486182]
[1746631427048,0.99420698,602.68,601.29,3.3486182]
[1746631427250,0.99420698,602.67,601.29,3.3486182]
[1746631427845,0.99420698,602.66,601.29,3.3486182]
[1746631428049,0.99420698,602.65,601.29,3.3486182]
[1746631428553,0.99420698,602.64,601.29,3.3486182]
[1746631429050,0.99420698,602.63,601.29,3.3486182]
[1746631429449,0.99420698,602.62,601.29,3.3486182]
[1746631429851,0.99420698,602.61,601.29,3.3486182]
[1746631430250,0.99420698,602.6,601.29,3.3486182]
[1746631430648,0.99420698,602.59,601.29,3.3486182]
[1746631430843,0.99420698,602.58,601.29,3.3486182]
[1746631431049,0.99420698,602.57,601.29,3.3486182]
[1746631431554,0.99420698,602.56,601.29,3.3486182]
[1746631432052,0.99420698,602.55,601.29,3.3486182]
[1746631432352,0.99420698,602.54,601.29,3.3486182]
[1746631432952,0.99420698,602.53,601.29,3.3486182]
[1746631433453,0.99420698,602.52,601.29,3.3486182]
[1746631433952,0.99420698,602.51,601.29,3.3486182]
[1746631434550,0.99420698,602.5,601.29,3.3486182]
[1746631434952,0.99541901,602.49,601.29,3.3486182]
[1746631435154,0.99541901,602.48,601.29,3.3486182]
[1746631435454,0.99541901,602.47,601.29,3.3486182]
[1746631435854,0.99541901,602.46,601.29,3.3486182]
[1746631436554,0.99541901,602.45,601.29,3.3486182]
[1746631436755,0.99541901,602.44,601.29,3.3486182]
[1746631437256,0.99541901,602.43,601.29,3.3486182]
[1746631438051,0.99541901,602.42,601.29,3.3486182]
[1746631438456,0.99500685,602.41,601.29,3.3486182]
[1746631438855,0.99500685,602.4,601.29,3.3486182]
[1746631439249,0.99500685,602.39,601.29,3.3486182]
[1746631439855,0.99500685,602.38,601.29,3.3486182]
[1746631440253,0.99500685,602.37,601.29,3.3486182]
[1746631440955,0.99500685,602.36,601.29,3.3486182]
[1746631441656,0.99500685,602.35,601.29,3.3486182]
[1746631442258,0.99500685,602.34,601.29,3.3486182]
[1746631442857,0.99500685,602.33,601.29,3.3486182]
[1746631443158,0.99500685,602.32,601.29,3.3486182]
[1746631443652,0.99500685,602.31,601.29,3.3486182]
[1746631443952,0.99500685,602.3,601.29,3.3486182]
[1746631444658,0.99500685,602.29,601.29,3.3486182]
[1746631445459,0.99500685,602.28,601.29,3.3486182]
[1746631445754,0.99500685,602.27,601.29,3.3486182]
[1746631445954,0.99500685,602.26,601.29,3.3486182]
[1746631446357,0.99500685,602.25,601.29,3.3486182]
[1746631447056,0.99500685,602.24,601.29,3.3486182]
[1746631447656,0.99500685,602.23,601.29,3.3486182]
[1746631448359,0.28898614,602.99,601.29,3.3486182]
[1746631448759,1.63035677,602.98,601.29,3.3486182]
[1746631448959,0.99363089,602.97,601.29,3.3486182]
[1746631449159,1.29867082,602.97,601.29,3.3486182]
[1746631449459,1.63036778,602.96,601.29,3.3486182]
[1746631449860,0.30503993,602.95,601.29,3.3486182]
[1746631450061,0.99363089,602.94,601.29,3.3486182]
[1746631450462,0.99363089,602.93,601.29,3.3486182]
[1746631451162,0.99363089,602.92,601.29,3.3486182]
[1746631451463,0.99363089,602.91,601.29,3.3486182]
[1746631451958,0.99363089,602.9,601.29,3.3486182]
[1746631452561,0.99363089,602.89,601.29,3.3486182]
[1746631453262,0.99363089,602.88,601.29,3.3486182]
[1746631453962,0.99363089,602.87,601.29,3.3486182]
[1746631454259,0.99363089,602.86,601.29,3.3486182]
[1746631455064,0.99363089,602.85,601.29,3.3486182]
[1746631455762,0.99363089,602.84,601.29,3.3486182]
[1746631455965,0.99363089,602.83,601.29,3.3486182]
[1746631456765,0.99363089,602.82,601.29,3.3486182]
[1746631457161,0.99363089,602.81,601.29,3.3486182]
[1746631457966,0.99363089,602.8,601.29,3.3486182]
[1746631458563,0.99363089,602.79,601.29,3.3486182]
[1746631458965,0.99363089,602.78,601.29,3.3486182]
[1746631459570,0.99385032,602.77,601.29,3.3486182]
[1746631460067,0.99385032,602.76,601.29,3.3486182]
[1746631460569,0.99385032,602.75,601.29,3.3486182]
[1746631460768,0.99385032,602.74,601.29,3.3486182]
[1746631461165,0.99385032,602.73,601.29,3.3486182]
[1746631461569,0.99385032,602.72,601.29,3.3486182]
[1746631461971,0.99385032,602.71,601.29,3.3486182]
[1746631462474,0.99385032,602.7,601.29,3.3486182]
[1746631462873,0.99385032,602.69,601.29,3.3486182]
[1746631463274,0.99385032,602.68,601.29,3.3486182]
[1746631463575,0.99385032,602.67,601.29,3.3486182]
[1746631464174,0.99385032,602.66,601.29,3.3486182]
[1746631464381,0.99385032,602.65,601.29,3.3486182]
[1746631465274,0.99385032,602.64,601.29,3.3486182]
[1746631465876,0.99385032,602.63,601.29,3.3486182]
[1746631466477,0.99385032,602.62,601.29,3.3486182]
[1746631467173,0.99385032,602.61,601.29,3.3486182]
[1746631467679,0.99385032,602.6,601.29,3.3486182]
[1746631468377,0.28896094,602.92,601.29,3.3486182]
[1746631468378,0.99385032,602.59,601.29,3.3486182]
[1746631468981,0.99385032,602.58,601.29,3.3486182]
[1746631469385,0.99385032,602.57,601.29,3.3486182]
[1746631469987,0.99385032,602.56,601.29,3.3486182]
[1746631470688,0.99385032,602.55,601.29,3.3486182]
[1746631471087,0.99385032,602.54,601.29,3.3486182]
[1746631471389,0.99385032,602.53,601.29,3.3486182]
[1746631471584,0.99385032,602.52,601.29,3.3486182]
[1746631472187,0.99385032,602.51,601.29,3.3486182]
[1746631472887,0.28896694,602.92,601.29,3.3486182]
[1746631472888,0.99385032,602.5,601.29,3.3486182]
[1746631473188,0.99385032,602.49,601.29,3.3486182]
[1746631473989,0.99385032,602.48,601.29,3.3486182]
[1746631474485,0.99385032,602.47,601.29,3.3486182]
[1746631474989,0.99385032,602.46,601.29,3.3486182]
[1746631475383,0.99385032,602.45,601.29,3.3486182]
[1746631476088,0.99385032,602.44,601.29,3.3486182]
[1746631476486,0.99385032,602.43,601.29,3.3486182]
[1746631476883,0.99385032,602.42,601.29,3.3486182]
[1746631477390,0.99385032,602.41,601.29,3.3486182]
[1746631477983,0.99385032,602.4,601.29,3.3486182]
[1746631478185,0.99385032,602.39,601.29,3.3486182]
[1746631478690,0.99385032,602.38,601.29,3.3486182]
[1746631479091,0.99385032,602.37,601.29,3.3486182]
[1746631479789,0.99385032,602.36,601.29,3.3486182]
[1746631480091,0.99385032,602.35,601.29,3.3486182]
[1746631480492,0.99385032,602.34,601.29,3.3486182]
[1746631480692,0.99385032,602.33,601.29,3.3486182]
[1746631480992,0.99385032,602.32,601.29,3.3486182]
[1746631481393,0.99385032,602.31,601.29,3.3486182]
[1746631481895,0.99385032,602.3,601.29,3.3486182]
[1746631482590,0.99385032,602.29,601.29,3.3486182]
[1746631483094,0.99385032,602.28,601.29,3.3486182]
[1746631483694,0.6206855,602.96,601.29,3.3486182]
[1746631484395,0.993755,602.95,601.29,3.3486182]
[1746631484795,0.993755,602.94,601.29,3.3486182]
[1746631485396,0.993755,602.93,601.29,3.3486182]
[1746631486096,0.993755,602.92,601.29,3.3486182]
[1746631486396,0.993755,602.91,601.29,3.3486182]
[1746631486600,0.993755,602.9,601.29,3.3486182]
[1746631487293,0.993755,602.89,601.29,3.3486182]
[1746631487497,0.993755,602.88,601.29,3.3486182]
[1746631487993,0.993755,602.87,601.29,3.3486182]
[1746631488492,0.993755,602.86,601.29,3.3486182]
[1746631489293,0.993755,602.85,601.29,3.3486182]
[1746631489699,0.993755,602.84,601.29,3.3486182]
[1746631489998,0.993755,602.83,601.29,3.3486182]
[1746631490593,0.993755,602.82,601.29,3.3486182]
[1746631490998,0.993755,602.81,601.29,3.3486182]
[1746631491793,0.993755,602.8,601.29,3.3486182]
[1746631492295,0.993755,602.79,601.29,3.3486182]